[Event "POL-chT 2 Liga 2019"]
[Site "Poronin"]
[Date "2019.09.10"]
[Round "4.42"]
[White "Adamczyk, Zuzanna"]
[Black "Pastuszko, Kinga"]
[Result "1/2-1/2"]
[ECO "B92"]
[WhiteElo "1938"]
[BlackElo "1998"]
[Annotator "NA"]
[PlyCount "72"]
[EventDate "2019.09.07"]
[EventType "team-tourn"]
[EventCountry "POL"]
[SourceTitle "playchess.com"]
[Source "ChessBase"]
[SourceQuality "1"]
[TimeControl "40/5400+30:1800+30"]

1. e4 {[%emt 0:00:00]} c5 {[%emt 0:00:00]} 2. Nf3 {[%emt 0:00:03]} d6 {[%emt 0:00:00]} 3. d4 {[%emt 0:00:27]} cxd4 {[%emt 0:00:00]} 4. Nxd4 {[%emt 0:00:16]} Nf6 {[%emt 0:00:08]} 5. Nc3 {[%emt 0:00:20]} a6 {[%emt 0:00:14]} 6. Be2 {[%emt 0:00:35]} e5 {[%emt 0:01:18]} 7. Nf3 {[%emt 0:00:33]} Be7 {[%emt 0:02:09]} 8. Bg5 {[%emt 0:00:52]} Be6 {[%emt 0:01:02]} 9. Bxf6 {[%emt 0:01:35]} Bxf6 {[%emt 0:01:02]} 10. Nd5 {[%emt 0:00:54]} Nc6 {[%emt 0:07:36]} 11. c3 {[%emt 0:06:05]} Ne7 {[%emt 0:12:58]} 12. Bc4 {[%emt 0:07:58]} Nxd5 {[%emt 0:05:22]} 13. Bxd5 {[%emt 0:01:06]} Qb6 {[%emt 0:00:16]} 14. O-O {[%emt 0:17:02]} O-O {[%emt 0:01:47]} 15. Rb1 {[%emt 0:04:56]} Rac8 {[%emt 0:10:53]} 16. Qd3 {[%emt 0:04:18]} Rfd8 {[%emt 0:26:17]} 17. Rfd1 {[%emt 0:05:58]} Bxd5 {[%emt 0:02:46]} 18. Qxd5 {[%emt 0:06:12]} Rc5 {[%emt 0:00:18]} 19. Qd3 {[%emt 0:02:06]} Qc6 {[%emt 0:01:10]} 20. Rbc1 {[%emt 0:13:56]} a5 {[%emt 0:00:28]} 21. c4 {[%emt 0:03:04]} Be7 {[%emt 0:08:29]} 22. b3 {[%emt 0:01:00]} f5 {[%emt 0:04:04]} 23. exf5 {[%emt 0:06:26]} e4 {[%emt 0:04:50]} 24. Qe3 {[%emt 0:00:57]} exf3 {[%emt 0:00:11]} 25. Qxe7 {[%emt 0:01:28]} Re8 {[%emt 0:00:20]} 26. Qg5 {[%emt 0:02:51]} Qe4 {[%emt 0:03:56]} 27. gxf3 {[%emt 0:01:40]} Rxf5 {[%emt 0:04:33]} 28. Qxg7+ {[%emt 0:04:05]} Kxg7 {[%emt 0:00:14]} 29. fxe4 {[%emt 0:00:03]} Rxe4 {[%emt 0:00:25]} 30. Rc2 {[%emt 0:02:47]} Rf6 {[%emt 0:01:19]} 31. Rcd2 {[%emt 0:00:34]} Rg4+ {[%emt 0:00:31]} 32. Kf1 {[%emt 0:01:49]} Rgf4 {[%emt 0:00:07]} 33. Kg2 {[%emt 0:01:10]} Rg4+ {[%emt 0:01:06]} 34. Kf1 {[%emt 0:00:19]} Rgf4 {[%emt 0:00:04]} 35. Kg2 {[%emt 0:00:06]} Rg4+ {[%emt 0:00:04]} 36. Kf1 {[%emt 0:00:30]} Rgf4 {[%emt 0:00:40]} 1/2-1/2

[Event "POL-chT 2 Liga 2019"]
[Site "Poronin"]
[Date "2019.09.10"]
[Round "4.43"]
[White "Mulet, Piotr"]
[Black "Bobula, Mateusz"]
[Result "0-1"]
[ECO "C08"]
[WhiteElo "2230"]
[BlackElo "2326"]
[Annotator "NA"]
[PlyCount "80"]
[EventDate "2019.09.07"]
[EventType "team-tourn"]
[EventCountry "POL"]
[SourceTitle "playchess.com"]
[Source "ChessBase"]
[SourceQuality "1"]
[TimeControl "40/5400+30:1800+30"]

1. e4 {[%emt 0:00:27]} e6 {[%emt 0:00:00]} 2. d4 {[%emt 0:00:22]} d5 {[%emt 0:00:03]} 3. Nd2 {[%emt 0:00:58]} c5 {[%emt 0:00:27]} 4. exd5 {[%emt 0:00:21]} exd5 {[%emt 0:00:06]} 5. Ngf3 {[%emt 0:00:24]} Nf6 {[%emt 0:00:57]} 6. Bb5+ {[%emt 0:00:16]} Bd7 {[%emt 0:00:19]} 7. Qe2+ {[%emt 0:01:07]} Be7 {[%emt 0:00:32]} 8. dxc5 {[%emt 0:00:34]} O-O {[%emt 0:00:08]} 9. Nb3 {[%emt 0:00:10]} Re8 {[%emt 0:00:22]} 10. Be3 {[%emt 0:00:05]} a6 {[%emt 0:00:37]} 11. Bd3 {[%emt 0:00:06]} Ba4 {[%emt 0:00:24]} 12. Nfd4 {[%emt 0:00:45]} Nbd7 {[%emt 0:00:29]} 13. O-O {[%emt 0:01:55]} Bxb3 {[%emt 0:01:03]} 14. Nxb3 {[%emt 0:05:27]} Nxc5 {[%emt 0:00:39]} 15. Qd1 {[%emt 0:08:46]} Nxb3 {[%emt 0:10:37]} 16. axb3 {[%emt 0:00:35]} Qc7 {[%emt 0:00:16]} 17. Qf3 {[%emt 0:02:50]} Bc5 {[%emt 0:01:26]} 18. Bf4 {[%emt 0:09:03]} Qb6 {[%emt 0:04:33]} 19. Rae1 {[%emt 0:02:02]} Qb4 {[%emt 0:05:19]} 20. Be5 {[%emt 0:08:23]} Qg4 {[%emt 0:20:06]} 21. Qxg4 {[%emt 0:05:22]} Nxg4 {[%emt 0:00:19]} 22. Bg3 {[%emt 0:00:10]} Nf6 {[%emt 0:01:57]} 23. Bf4 {[%emt 0:08:55]} Ne4 {[%emt 0:02:15]} 24. Bxe4 {[%emt 0:04:18]} dxe4 {[%emt 0:00:49]} 25. Rd1 {[%emt 0:01:04]} Rad8 {[%emt 0:00:21]} 26. Be3 {[%emt 0:05:18]} Be7 {[%emt 0:19:02]} 27. Bb6 {[%emt 0:01:40]} Rc8 {[%emt 0:01:18]} 28. c3 {[%emt 0:00:25]} Rc6 {[%emt 0:00:28]} 29. Be3 {[%emt 0:00:14]} Rd6 {[%emt 0:01:00]} 30. Rxd6 {[%emt 0:00:38]} Bxd6 {[%emt 0:00:02]} 31. Rd1 {[%emt 0:15:06]} Bc7 {[%emt 0:00:21]} 32. g4 {[%emt 0:01:26]} Rd8 {[%emt 0:00:47]} 33. Re1 {[%emt 0:03:33]} h5 {[%emt 0:05:24]} 34. h3 {[%emt 0:00:33]} hxg4 {[%emt 0:02:46]} 35. hxg4 {[%emt 0:00:07]} g6 {[%emt 0:03:00]} 36. Bd4 {[%emt 0:09:54]} f5 {[%emt 0:00:40]} 37. f3 {[%emt 0:00:35]} Bg3 {[%emt 0:01:02]} 38. Rf1 {[%emt 0:02:17]} Rxd4 {[%emt 0:00:17]} 39. cxd4 {[%emt 0:00:21]} e3 {[%emt 0:00:02]} 40. gxf5 {[%emt 0:00:00]} gxf5 {[%emt 0:00:00]} 0-1

[Event "POL-chT 2 Liga 2019"]
[Site "Poronin"]
[Date "2019.09.10"]
[Round "4.45"]
[White "Bachorczyk, Marcin"]
[Black "Gesicki, Jacek"]
[Result "1-0"]
[ECO "B20"]
[WhiteElo "2069"]
[BlackElo "2234"]
[Annotator "NA"]
[PlyCount "59"]
[EventDate "2019.09.07"]
[EventType "team-tourn"]
[EventCountry "POL"]
[SourceTitle "playchess.com"]
[Source "ChessBase"]
[SourceQuality "1"]
[TimeControl "40/5400+30:1800+30"]

1. e4 {[%emt 0:00:00]} c5 {[%emt 0:00:00]} 2. g3 {[%emt 0:00:00]} Nc6 {[%emt 0:00:40]} 3. Bg2 {[%emt 0:00:00]} g6 {[%emt 0:00:44]} 4. d3 {[%emt 0:00:00]} Bg7 {[%emt 0:00:31]} 5. f4 {[%emt 0:00:03]} d6 {[%emt 0:01:04]} 6. Nf3 {[%emt 0:00:07]} e6 {[%emt 0:00:56]} 7. O-O {[%emt 0:00:08]} Nge7 {[%emt 0:00:48]} 8. c3 {[%emt 0:00:10]} O-O {[%emt 0:03:57]} 9. Be3 {[%emt 0:00:06]} b6 {[%emt 0:02:07]} 10. Bf2 {[%emt 0:02:30]} e5 {[%emt 0:12:49]} 11. Nbd2 {[%emt 0:05:48]} Ba6 {[%emt 0:09:08]} 12. Qe2 {[%emt 0:17:19]} exf4 {[%emt 0:19:40]} 13. gxf4 {[%emt 0:00:16]} d5 {[%emt 0:03:21]} 14. e5 {[%emt 0:02:00]} Nf5 {[%emt 0:05:29]} 15. Rfe1 {[%emt 0:04:08]} Bh6 {[%emt 0:04:11]} 16. Bg3 {[%emt 0:28:40]} Re8 {[%emt 0:11:07]} 17. Bh3 {[%emt 0:11:34]} Nxg3 {[%emt 0:04:57]} 18. hxg3 {[%emt 0:00:09]} f6 {[%emt 0:00:03]} 19. Nf1 {[%emt 0:17:56]} fxe5 {[%emt 0:03:52]} 20. fxe5 {[%emt 0:00:48]} Nxe5 {[%emt 0:01:14]} 21. Nxe5 {[%emt 0:01:46]} Bg7 {[%emt 0:00:12]} 22. Qf3 {[%emt 0:02:11]} Bxe5 {[%emt 0:03:30]} 23. Bg2 {[%emt 0:00:06]} Bb7 {[%emt 0:02:01]} 24. Re2 {[%emt 0:03:17]} Qd7 {[%emt 0:03:33]} 25. Ne3 {[%emt 0:02:55]} Rf8 {[%emt 0:02:23]} 26. Qg4 {[%emt 0:00:03]} Qxg4 {[%emt 0:00:35]} 27. Nxg4 {[%emt 0:00:03]} Bg7 {[%emt 0:00:31]} 28. Re7 {[%emt 0:00:18]} h5 {[%emt 0:04:01]} 29. Rxb7 {[%emt 0:01:21]} hxg4 {[%emt 0:00:03]} 30. Bxd5+ {[%emt 0:00:11] Rab8 Rc7+ Rb7} 1-0

[Event "POL-chT 2 Liga 2019"]
[Site "Poronin"]
[Date "2019.09.10"]
[Round "4.46"]
[White "Sendera, Jaroslaw"]
[Black "Pawlowski, Maciej"]
[Result "1-0"]
[ECO "C11"]
[WhiteElo "2203"]
[BlackElo "1948"]
[Annotator "NA"]
[PlyCount "75"]
[EventDate "2019.09.07"]
[EventType "team-tourn"]
[EventCountry "POL"]
[SourceTitle "playchess.com"]
[Source "ChessBase"]
[SourceQuality "1"]
[TimeControl "40/5400+30:1800+30"]

1. e4 {[%emt 0:00:00]} e6 {[%emt 0:00:00]} 2. Nf3 {[%emt 0:00:21]} d5 {[%emt 0:00:00]} 3. Nc3 {[%emt 0:00:15]} Nf6 {[%emt 0:00:00]} 4. e5 {[%emt 0:00:17]} Nfd7 {[%emt 0:00:06]} 5. d4 {[%emt 0:00:15]} c5 {[%emt 0:00:10]} 6. dxc5 {[%emt 0:00:25]} Nc6 {[%emt 0:00:10]} 7. Bf4 {[%emt 0:00:22]} Bxc5 {[%emt 0:00:10]} 8. Bd3 {[%emt 0:02:08]} f6 {[%emt 0:00:21]} 9. exf6 {[%emt 0:01:22]} Nxf6 {[%emt 0:00:08]} 10. O-O {[%emt 0:01:51]} O-O {[%emt 0:00:13]} 11. Ne5 {[%emt 0:01:19]} a6 {[%emt 0:04:29]} 12. Qe2 {[%emt 0:06:10]} Bd6 {[%emt 0:13:59]} 13. Rae1 {[%emt 0:18:37]} Qc7 {[%emt 0:08:25]} 14. Bg3 {[%emt 0:03:49]} Nxe5 {[%emt 0:15:04]} 15. Bxe5 {[%emt 0:00:20]} Bd7 {[%emt 0:02:18]} 16. Bxd6 {[%emt 0:25:03]} Qxd6 {[%emt 0:00:06]} 17. Qe5 {[%emt 0:00:34]} Qb6 {[%emt 0:06:31]} 18. b3 {[%emt 0:08:35]} Rae8 {[%emt 0:07:59]} 19. h3 {[%emt 0:00:35]} Qb4 {[%emt 0:07:55]} 20. f4 {[%emt 0:07:15]} g6 {[%emt 0:07:59]} 21. a4 {[%emt 0:06:41]} b5 {[%emt 0:08:13]} 22. axb5 {[%emt 0:00:59]} Bxb5 {[%emt 0:00:33]} 23. Nxb5 {[%emt 0:00:25]} axb5 {[%emt 0:00:03]} 24. Kh2 {[%emt 0:01:46]} Nd7 {[%emt 0:03:33]} 25. Qg5 {[%emt 0:02:22]} Kg7 {[%emt 0:04:46]} 26. Ra1 {[%emt 0:01:22]} Nc5 {[%emt 0:02:24]} 27. Ra7+ {[%emt 0:02:41]} Rf7 {[%emt 0:00:11]} 28. Rxf7+ {[%emt 0:02:49]} Kxf7 {[%emt 0:00:05]} 29. f5 {[%emt 0:01:50]} exf5 {[%emt 0:02:48]} 30. Bxf5 {[%emt 0:00:25]} gxf5 {[%emt 0:03:03]} 31. Rxf5+ {[%emt 0:00:19]} Ke6 {[%emt 0:00:03]} 32. Rf6+ {[%emt 0:00:33]} Kd7 {[%emt 0:00:08]} 33. Qxd5+ {[%emt 0:00:13]} Kc8 {[%emt 0:00:59]} 34. Qc6+ {[%emt 0:02:48]} Kd8 {[%emt 0:00:05]} 35. Rd6+ Ke7 36. Qc7+ Kf8 37. Rf6+ Kg8 38. Qf7+ 1-0

[Event "POL-chT 2 Liga 2019"]
[Site "Poronin"]
[Date "2019.09.10"]
[Round "4.47"]
[White "Sroka, Janusz"]
[Black "Polok, Rafal"]
[Result "0-1"]
[ECO "C05"]
[WhiteElo "1876"]
[BlackElo "2053"]
[Annotator "NA"]
[PlyCount "68"]
[EventDate "2019.09.07"]
[EventType "team-tourn"]
[EventCountry "POL"]
[SourceTitle "playchess.com"]
[Source "ChessBase"]
[SourceQuality "1"]
[TimeControl "40/5400+30:1800+30"]

1. e4 {[%emt 0:00:00]} e6 {[%emt 0:00:00]} 2. d4 {[%emt 0:00:23]} d5 {[%emt 0:00:00]} 3. Nd2 {[%emt 0:00:13]} Nf6 {[%emt 0:00:00]} 4. e5 {[%emt 0:00:11]} Nfd7 {[%emt 0:00:00]} 5. c3 {[%emt 0:00:07]} c5 {[%emt 0:00:00]} 6. f4 {[%emt 0:00:06]} Nc6 {[%emt 0:01:08]} 7. Ndf3 {[%emt 0:00:26]} cxd4 {[%emt 0:03:32]} 8. cxd4 {[%emt 0:00:04]} Qb6 {[%emt 0:00:10]} 9. Ne2 {[%emt 0:00:07]} Bb4+ {[%emt 0:04:11]} 10. Bd2 {[%emt 0:01:59]} f6 {[%emt 0:01:35]} 11. a3 {[%emt 0:05:38]} Be7 {[%emt 0:09:53]} 12. Bc3 {[%emt 0:06:17]} O-O {[%emt 0:16:50]} 13. Qd2 {[%emt 0:07:15]} a5 {[%emt 0:07:10]} 14. Rd1 {[%emt 0:11:38]} a4 {[%emt 0:02:59]} 15. Ng3 {[%emt 0:11:20]} Na5 {[%emt 0:15:56]} 16. Bd3 {[%emt 0:01:12]} f5 {[%emt 0:09:43]} 17. Qf2 {[%emt 0:18:18]} Qa7 {[%emt 0:05:04]} 18. Ne2 {[%emt 0:00:39]} Nb6 {[%emt 0:00:41]} 19. h3 {[%emt 0:00:18]} Nbc4 {[%emt 0:01:46]} 20. g4 {[%emt 0:00:10]} Qb6 {[%emt 0:01:21]} 21. Rb1 {[%emt 0:03:21]} Bd7 {[%emt 0:01:15]} 22. Rg1 {[%emt 0:01:36]} Bb5 {[%emt 0:01:22]} 23. Bc2 {[%emt 0:02:09]} Rac8 {[%emt 0:01:05]} 24. gxf5 {[%emt 0:04:47]} exf5 {[%emt 0:00:18]} 25. Qg3 {[%emt 0:03:45]} Qh6 {[%emt 0:02:17]} 26. Ng5 {[%emt 0:03:54]} Qh5 {[%emt 0:03:18]} 27. Bd3 {[%emt 0:08:35]} Nb3 {[%emt 0:02:37]} 28. Rd1 {[%emt 0:02:07]} Rc6 {[%emt 0:00:24]} 29. Kf2 {[%emt 0:03:58]} Rg6 {[%emt 0:02:53]} 30. Qf3 {[%emt 0:00:49]} Qxf3+ {[%emt 0:00:32]} 31. Nxf3 {[%emt 0:00:18]} Rxg1 {[%emt 0:00:32]} 32. Rxg1 {[%emt 0:00:15]} Nxa3 {[%emt 0:00:33]} 33. Bxb5 {[%emt 0:01:10]} Nxb5 {[%emt 0:00:10]} 34. Ra1 {[%emt 0:00:06]} Nxa1 {[%emt 0:00:05]} 0-1

[Event "POL-chT 2 Liga 2019"]
[Site "Poronin"]
[Date "2019.09.10"]
[Round "4.48"]
[White "Trybowska, Barbara"]
[Black "Jakubiec, Edyta"]
[Result "0-1"]
[ECO "B90"]
[WhiteElo "1689"]
[BlackElo "2221"]
[Annotator "NA"]
[PlyCount "72"]
[EventDate "2019.09.07"]
[EventType "team-tourn"]
[EventCountry "POL"]
[SourceTitle "playchess.com"]
[Source "ChessBase"]
[SourceQuality "1"]
[TimeControl "40/5400+30:1800+30"]

1. e4 {[%emt 0:00:00]} c5 {[%emt 0:00:00]} 2. Nf3 {[%emt 0:00:00]} d6 {[%emt 0:00:11]} 3. d4 {[%emt 0:00:00]} cxd4 {[%emt 0:00:19]} 4. Nxd4 {[%emt 0:00:00]} Nf6 {[%emt 0:00:10]} 5. Nc3 {[%emt 0:00:16]} a6 {[%emt 0:00:14]} 6. Be3 {[%emt 0:00:40]} e5 {[%emt 0:00:28]} 7. Nb3 {[%emt 0:00:35]} Be7 {[%emt 0:00:25]} 8. Be2 {[%emt 0:00:22]} O-O {[%emt 0:01:46]} 9. O-O {[%emt 0:05:56]} Be6 {[%emt 0:00:42]} 10. Qd2 {[%emt 0:06:53]} Nbd7 {[%emt 0:00:54]} 11. Rad1 {[%emt 0:01:58]} Rc8 {[%emt 0:02:59]} 12. f3 {[%emt 0:06:56]} Qc7 {[%emt 0:00:33]} 13. Bd3 {[%emt 0:03:44]} Nb6 {[%emt 0:07:47]} 14. Qf2 {[%emt 0:03:51]} Nc4 {[%emt 0:03:20]} 15. Bxc4 {[%emt 0:00:50]} Bxc4 {[%emt 0:00:13]} 16. Bb6 {[%emt 0:01:29]} Qb8 {[%emt 0:01:53]} 17. Ba7 {[%emt 0:04:08]} Qa8 {[%emt 0:02:01]} 18. Rfe1 {[%emt 0:03:41]} b5 {[%emt 0:00:37]} 19. Na5 {[%emt 0:09:41]} Be6 {[%emt 0:00:54]} 20. Rd2 {[%emt 0:15:34]} b4 {[%emt 0:13:26]} 21. Ne2 {[%emt 0:12:33]} d5 {[%emt 0:01:59]} 22. exd5 {[%emt 0:00:25]} Nxd5 {[%emt 0:00:25]} 23. Ng3 {[%emt 0:02:51]} Rc7 {[%emt 0:05:15]} 24. Rxe5 {[%emt 0:02:15]} Rxa7 {[%emt 0:00:55]} 25. Ne4 {[%emt 0:06:45]} Rc7 {[%emt 0:04:34]} 26. Qg3 {[%emt 0:03:53]} Qa7+ {[%emt 0:06:25]} 27. Kh1 {[%emt 0:00:42]} Ne3 {[%emt 0:02:53]} 28. Qf2 {[%emt 0:02:13]} Nc4 {[%emt 0:06:58]} 29. Qxa7 {[%emt 0:02:50]} Rxa7 {[%emt 0:00:01]} 30. Nxc4 {[%emt 0:00:14]} Bxc4 {[%emt 0:00:06]} 31. b3 {[%emt 0:00:14]} Bb5 {[%emt 0:01:00]} 32. Red5 {[%emt 0:02:56]} Bc6 {[%emt 0:02:36]} 33. R5d4 {[%emt 0:00:08]} g6 {[%emt 0:01:42]} 34. Nd6 {[%emt 0:01:04]} Bf6 {[%emt 0:01:21]} 35. Rc4 {[%emt 0:00:14]} Bc3 {[%emt 0:00:10]} 36. Re2 {[%emt 0:00:21]} Bb5 {[%emt 0:00:31]} 0-1

[Event "POL-chT 2 Liga 2019"]
[Site "Poronin"]
[Date "2019.09.10"]
[Round "4.51"]
[White "Bajerlein, Dawid"]
[Black "Komendecki, Jacek"]
[Result "1-0"]
[ECO "E33"]
[WhiteElo "2035"]
[BlackElo "2073"]
[Annotator "NA"]
[PlyCount "131"]
[EventDate "2019.09.07"]
[EventType "team-tourn"]
[EventCountry "POL"]
[SourceTitle "playchess.com"]
[Source "ChessBase"]
[SourceQuality "1"]
[TimeControl "40/5400+30:1800+30"]

1. d4 {[%emt 0:00:00]} Nf6 {[%emt 0:00:00]} 2. c4 {[%emt 0:00:00]} e6 {[%emt 0:00:00]} 3. Nc3 {[%emt 0:00:04]} Bb4 {[%emt 0:00:03]} 4. Qc2 {[%emt 0:00:06]} Nc6 {[%emt 0:00:18]} 5. Nf3 {[%emt 0:09:37]} d6 {[%emt 0:00:23]} 6. a3 {[%emt 0:07:32]} Bxc3+ {[%emt 0:00:13]} 7. Qxc3 {[%emt 0:00:03]} O-O {[%emt 0:00:19]} 8. b4 {[%emt 0:15:10]} e5 {[%emt 0:02:31]} 9. dxe5 {[%emt 0:07:33]} Ne4 {[%emt 0:01:16]} 10. Qb3 {[%emt 0:16:20]} a5 {[%emt 0:00:29]} 11. Bb2 {[%emt 0:05:15]} axb4 {[%emt 0:00:09]} 12. axb4 {[%emt 0:00:10]} Rxa1+ {[%emt 0:00:07]} 13. Bxa1 {[%emt 0:00:05]} Nxe5 {[%emt 0:00:07]} 14. Qb2 {[%emt 0:26:21]} Re8 {[%emt 1:01:12]} 15. e3 {[%emt 0:00:29]} Nxf3+ {[%emt 0:00:38]} 16. gxf3 {[%emt 0:00:02]} Nf6 {[%emt 0:00:01]} 17. Rg1 {[%emt 0:02:27]} Kh8 {[%emt 0:02:08]} 18. Bd3 {[%emt 0:00:51]} Re5 {[%emt 0:07:24]} 19. Qd4 {[%emt 0:01:14]} Bf5 {[%emt 0:11:37]} 20. f4 {[%emt 0:03:25]} c5 {[%emt 0:00:09]} 21. bxc5 {[%emt 0:00:17]} Rxc5 {[%emt 0:00:13]} 22. e4 {[%emt 0:01:03]} Bg6 {[%emt 0:04:55]} 23. f5 {[%emt 0:00:57]} Bh5 24. f4 {[%emt 0:00:21]} Qe7 {[%emt 0:04:19]} 25. Kf2 {[%emt 0:00:08]} Ra5 {[%emt 0:01:01]} 26. Bb2 {[%emt 0:01:40]} h6 {[%emt 0:01:21]} 27. h3 {[%emt 0:00:32]} Ra2 {[%emt 0:01:06]} 28. Ra1 {[%emt 0:00:58]} Rxa1 {[%emt 0:00:24]} 29. Bxa1 {[%emt 0:00:02]} Ne8 {[%emt 0:01:01]} 30. Kg3 {[%emt 0:00:22]} f6 {[%emt 0:00:51]} 31. Bc3 {[%emt 0:00:37]} g5 {[%emt 0:00:26]} 32. fxg6 {[%emt 0:00:45]} Bxg6 {[%emt 0:00:02]} 33. Bb4 {[%emt 0:00:59]} Bh5 {[%emt 0:00:33]} 34. Qd5 {[%emt 0:00:24]} Bf7 {[%emt 0:01:04]} 35. Qd4 {[%emt 0:00:35]} Bh5 {[%emt 0:00:11]} 36. Qd5 {[%emt 0:00:04]} Bf7 {[%emt 0:00:04]} 37. Qf5 {[%emt 0:01:12]} Qe6 {[%emt 0:00:51]} 38. Qb5 {[%emt 0:00:26]} Qe7 {[%emt 0:00:37]} 39. Qb6 {[%emt 0:00:32]} Bh5 {[%emt 0:00:38]} 40. Qe3 {[%emt 0:00:00]} Qg7+ {[%emt 0:00:00]} 41. Kf2 {[%emt 0:01:26]} Qd7 {[%emt 0:06:31]} 42. e5 {[%emt 0:11:37]} dxe5 {[%emt 0:20:12]} 43. fxe5 {[%emt 0:00:31]} Kg7 {[%emt 0:00:33]} 44. Bd2 {[%emt 0:08:33]} Kg8 {[%emt 0:01:20]} 45. Be4 {[%emt 0:05:55]} fxe5 {[%emt 0:01:59]} 46. Qxh6 {[%emt 0:00:15]} Qf7+ {[%emt 0:01:00]} 47. Ke1 {[%emt 0:01:24]} Nf6 {[%emt 0:00:12]} 48. Qg5+ {[%emt 0:01:47]} Qg7 {[%emt 0:00:07]} 49. Bxb7 {[%emt 0:00:34]} Qxg5 {[%emt 0:00:40]} 50. Bxg5 {[%emt 0:00:02]} Ne8 {[%emt 0:00:34]} 51. c5 {[%emt 0:01:00]} Bf7 {[%emt 0:00:34]} 52. Bd8 {[%emt 0:00:57]} Kg7 {[%emt 0:01:28]} 53. Bc8 {[%emt 0:01:06]} Bd5 {[%emt 0:01:19]} 54. Bd7 {[%emt 0:00:46]} Nf6 {[%emt 0:00:10]} 55. c6 {[%emt 0:00:15]} Kf7 {[%emt 0:01:04]} 56. c7 {[%emt 0:00:26]} Bb7 {[%emt 0:00:15]} 57. c8=Q {[%emt 0:00:32]} Bxc8 {[%emt 0:00:04]} 58. Bxc8 {[%emt 0:00:03]} Nd5 {[%emt 0:00:35]} 59. Kf2 {[%emt 0:01:07]} Kg6 {[%emt 0:00:19]} 60. Kf3 {[%emt 0:00:34]} Nf6 {[%emt 0:00:52]} 61. Ba5 {[%emt 0:01:49]} Kg5 {[%emt 0:00:50]} 62. Bd8 {[%emt 0:00:19]} Kg6 {[%emt 0:00:10]} 63. Bg4 {[%emt 0:00:27]} Ne8 {[%emt 0:01:25]} 64. Be7 {[%emt 0:00:38]} Kf7 {[%emt 0:00:14]} 65. Ba3 {[%emt 0:00:27]} Kf6 {[%emt 0:00:07]} 66. Ke4 {[%emt 0:00:40]} 1-0

[Event "POL-chT 2 Liga 2019"]
[Site "Poronin"]
[Date "2019.09.10"]
[Round "4.52"]
[White "Kowalak, Piotr"]
[Black "Bernat, Marcin"]
[Result "1-0"]
[ECO "C00"]
[WhiteElo "2108"]
[BlackElo "2023"]
[Annotator "NA"]
[PlyCount "62"]
[EventDate "2019.09.07"]
[EventType "team-tourn"]
[EventCountry "POL"]
[SourceTitle "playchess.com"]
[Source "ChessBase"]
[SourceQuality "1"]
[TimeControl "40/5400+30:1800+30"]

1. e4 {[%emt 0:00:00]} e6 {[%emt 0:00:00]} 2. d4 {[%emt 0:00:00]} d5 {[%emt 0:00:00]} 3. Bd3 {[%emt 0:00:02]} dxe4 {[%emt 0:00:07]} 4. Bxe4 {[%emt 0:00:08]} Nf6 {[%emt 0:00:07]} 5. Bf3 {[%emt 0:00:14]} c5 {[%emt 0:01:46]} 6. Ne2 {[%emt 0:00:15]} Nc6 {[%emt 0:00:37]} 7. Be3 {[%emt 0:00:22]} cxd4 {[%emt 0:17:01]} 8. Nxd4 {[%emt 0:00:55]} Nxd4 {[%emt 0:01:33]} 9. Bxd4 {[%emt 0:01:16]} Be7 {[%emt 0:02:16]} 10. O-O {[%emt 0:00:46]} O-O {[%emt 0:00:20]} 11. Nc3 {[%emt 0:01:17]} Qa5 {[%emt 0:01:49]} 12. Qe2 {[%emt 0:01:49]} Nd7 {[%emt 0:14:30]} 13. Rfd1 {[%emt 0:13:18]} Bf6 {[%emt 0:03:44]} 14. Nb5 {[%emt 0:07:31]} a6 {[%emt 0:06:06]} 15. Nd6 {[%emt 0:02:53]} Qc7 {[%emt 0:02:21]} 16. Bxf6 {[%emt 0:09:54]} Nxf6 {[%emt 0:04:02]} 17. Rd3 {[%emt 0:00:25]} Rb8 {[%emt 0:08:00]} 18. c4 {[%emt 0:09:53]} b6 {[%emt 0:13:11]} 19. b3 {[%emt 0:11:18]} Bd7 {[%emt 0:03:39]} 20. Ne4 {[%emt 0:03:21]} Nxe4 {[%emt 0:00:21]} 21. Qxe4 {[%emt 0:02:19]} e5 {[%emt 0:06:27]} 22. Rad1 {[%emt 0:03:27]} Be6 {[%emt 0:00:27]} 23. Qc6 {[%emt 0:09:16]} Qxc6 {[%emt 0:02:15]} 24. Bxc6 {[%emt 0:00:02]} a5 {[%emt 0:00:06]} 25. Rd6 {[%emt 0:01:08]} Bf5 {[%emt 0:05:35]} 26. f3 {[%emt 0:03:53]} h5 {[%emt 0:00:02]} 27. h4 {[%emt 0:02:42]} Rfc8 {[%emt 0:00:31]} 28. R1d5 {[%emt 0:04:00]} f6 {[%emt 0:00:35]} 29. Rb5 {[%emt 0:02:38]} Bb1 {[%emt 0:01:50]} 30. a3 {[%emt 0:00:20]} Ba2 {[%emt 0:01:12]} 31. a4 {[%emt 0:03:10]} g6 {[%emt 0:01:43]} 1-0

[Event "POL-chT 2 Liga 2019"]
[Site "Poronin"]
[Date "2019.09.10"]
[Round "4.53"]
[White "Glatty, Zbigniew"]
[Black "Krawiec, Grzegorz"]
[Result "1/2-1/2"]
[ECO "B32"]
[WhiteElo "1845"]
[BlackElo "1792"]
[Annotator "NA"]
[PlyCount "58"]
[EventDate "2019.09.07"]
[EventType "team-tourn"]
[EventCountry "POL"]
[SourceTitle "playchess.com"]
[Source "ChessBase"]
[SourceQuality "1"]
[TimeControl "40/5400+30:1800+30"]

1. e4 {[%emt 0:00:00]} c5 {[%emt 0:00:00]} 2. Nf3 {[%emt 0:00:00]} Nc6 {[%emt 0:00:15]} 3. d4 {[%emt 0:00:00]} cxd4 {[%emt 0:00:03]} 4. Nxd4 {[%emt 0:00:00]} e5 {[%emt 0:00:06]} 5. Nb5 {[%emt 0:00:03]} a6 {[%emt 0:00:05]} 6. Nd6+ {[%emt 0:00:09]} Bxd6 {[%emt 0:00:03]} 7. Qxd6 {[%emt 0:00:08]} Qf6 {[%emt 0:00:03]} 8. Qxf6 {[%emt 0:00:11]} Nxf6 {[%emt 0:00:05]} 9. Nc3 {[%emt 0:00:12]} d5 {[%emt 0:00:37]} 10. exd5 {[%emt 0:00:14]} Nb4 {[%emt 0:00:07]} 11. Bd3 {[%emt 0:00:17]} Nxd3+ {[%emt 0:00:03]} 12. cxd3 {[%emt 0:00:13]} Bf5 {[%emt 0:00:02]} 13. Bg5 {[%emt 0:16:21]} Bxd3 {[%emt 0:00:19]} 14. O-O-O {[%emt 0:02:15]} Bg6 {[%emt 0:02:41]} 15. Rhe1 {[%emt 0:01:59]} Nd7 {[%emt 0:00:18]} 16. f3 {[%emt 0:23:06]} f6 {[%emt 0:02:59]} 17. Be3 {[%emt 0:04:41]} Rc8 {[%emt 0:01:52]} 18. Kd2 {[%emt 0:07:45]} O-O {[%emt 0:32:51]} 19. Ne4 {[%emt 0:03:20]} Rc4 {[%emt 0:09:36]} 20. Rc1 {[%emt 0:04:33]} Rfc8 {[%emt 0:18:44]} 21. Rxc4 {[%emt 0:08:33]} Rxc4 {[%emt 0:00:10]} 22. Rc1 {[%emt 0:00:37]} Rxc1 {[%emt 0:03:54]} 23. Kxc1 {[%emt 0:00:02]} Bf7 {[%emt 0:00:12]} 24. Nc3 {[%emt 0:00:52]} Kf8 {[%emt 0:01:07]} 25. b4 {[%emt 0:05:44]} b6 {[%emt 0:03:23]} 26. d6 {[%emt 0:05:48]} Bc4 {[%emt 0:04:52]} 27. a3 {[%emt 0:01:09]} Kf7 {[%emt 0:00:44]} 28. Na4 {[%emt 0:00:49]} Ke6 {[%emt 0:00:17]} 29. Nxb6 {[%emt 0:02:47]} Nxb6 {[%emt 0:00:04]} 1/2-1/2